fUST/lending_fUST_20250311
["ID","MTS","AMOUNT","RATE_DAILY","PERIOD"]
[355881138,1741675842748,-500.0,0.00041095,120]
[355881139,1741675842874,-151.0,0.00041095,14]
[355881140,1741675842884,-2292.35,0.00041095,120]
[355881141,1741675842894,-151.0,0.00041095,14]
[355881142,1741675842903,-151.0,0.00041095,14]
[355881143,1741675842913,-151.0,0.00041095,14]
[355881144,1741675842923,-500.0,0.00041095,120]
[355881145,1741675842932,-500.0,0.00041095,120]
[355881146,1741675842942,-500.0,0.00041095,120]
[355881147,1741675842952,-500.0,0.00041095,120]
[355881148,1741675842961,-500.0,0.00041095,120]
[355881149,1741675842971,-500.0,0.00041095,120]
[355881150,1741675842981,-900.77,0.00041095,120]
[355881151,1741675842991,-500.0,0.00041095,120]
[355881152,1741675843000,-748.52,0.00041095,120]
[355881153,1741675843010,-500.0,0.00041095,120]
[355881154,1741675843019,-698.17,0.00041095,120]
[355881155,1741675843029,-151.0,0.00041095,14]
[355881156,1741675843039,-151.0,0.00041095,14]
[355881157,1741675843048,-500.0,0.00041095,2]
[355881158,1741675843058,-151.0,0.00041095,14]
[355881159,1741675843067,-151.0,0.00041095,14]
[355881160,1741675843077,-500.0,0.00041095,120]
[355881161,1741675843087,-500.0,0.00041095,120]
[355881162,1741675843096,-151.0,0.00041095,14]
[355881163,1741675843106,-151.0,0.00041095,14]
[355881164,1741675843115,-533.41,0.00041095,120]
[355881165,1741675843124,-722.47,0.00041095,120]
[355881166,1741675843133,-500.0,0.00041095,120]
[355881167,1741675843143,-751.73,0.00041095,120]
[355881168,1741675843152,-500.0,0.00041095,120]
[355881169,1741675843162,-504.44828079,0.00041095,120]
[355881170,1741675843171,-500.0,0.00041095,120]
[355881171,1741675843180,-500.0,0.00041095,120]
[355881172,1741675843189,-500.0,0.00041095,120]
[355881173,1741675843199,-1167.45,0.00041095,120]
[355881174,1741675843208,-500.0,0.00041095,120]
[355881175,1741675843218,-500.0,0.00041095,120]
[355881176,1741675843228,-758.97,0.00041095,120]
[355881177,1741675843239,-500.0,0.00041095,120]
[355881178,1741675843252,-500.0,0.00041095,120]
[355881179,1741675843262,-927.46,0.00041095,120]
[355881180,1741675843272,-151.0,0.00041095,14]
[355881181,1741675843283,-398.752166,0.00041095,14]
[355881182,1741675843293,-151.0,0.00041095,14]
[355881183,1741675843302,-398.752166,0.00041095,14]
[355881184,1741675843311,-151.0,0.00041095,14]
[355881185,1741675843321,-398.752166,0.00041095,14]
[355881186,1741675843331,-153.293895,0.00041095,14]
[355881187,1741675843341,-500.0,0.00041095,120]
[355881188,1741675843350,-500.0,0.00041095,120]
[355881189,1741675843360,-500.0,0.00041095,120]
[355881190,1741675843370,-398.752166,0.00041095,14]
[355881191,1741675843380,-398.752166,0.00041095,14]
[355881192,1741675843389,-500.0,0.00041095,120]
[355881193,1741675843398,-555.1918963,0.00041095,120]
[355881194,1741675843408,-398.752166,0.00041095,14]
[355881195,1741675843417,-500.0,0.00041095,120]
[355881196,1741675843427,-577.335142,0.00041095,14]
[355881197,1741675843436,-577.335142,0.00041095,14]
[355881198,1741675843445,-577.335142,0.00041095,14]
[355881199,1741675843455,-577.335142,0.00041095,14]
[355881200,1741675843464,-619.7,0.00041095,120]
[355881201,1741675843475,-619.7,0.00041095,120]
[355881202,1741675843485,-619.7,0.00041095,120]
[355881203,1741675843495,-619.7,0.00041095,120]
[355881204,1741675843504,-619.7,0.00041095,120]
[355881205,1741675843514,-619.7,0.00041095,120]
[355881206,1741675843524,-500.0,0.00041095,120]
[355881207,1741675843533,-619.7,0.00041095,120]
[355881208,1741675843543,-619.7,0.00041095,120]
[355881209,1741675843552,-619.7,0.00041095,120]
[355881210,1741675843561,-619.7,0.00041095,120]
[355881211,1741675843571,-619.7,0.00041095,120]
[355881212,1741675843580,-577.335142,0.00041095,14]
[355881213,1741675843589,-619.7,0.00041095,120]
[355881215,1741675843599,-619.7,0.00041095,120]
[355881216,1741675843608,-619.7,0.00041095,120]
[355881217,1741675843618,-619.7,0.00041095,120]
[355881218,1741675843627,-577.335142,0.00041095,14]
[355881219,1741675843637,-619.7,0.00041095,120]
[355881220,1741675843647,-619.7,0.00041095,120]
[355881221,1741675843656,-577.335142,0.00041095,14]
[355881222,1741675843665,-619.7,0.00041095,120]
[355881223,1741675843675,-619.7,0.00041095,120]
[355881224,1741675843685,-619.7,0.00041095,120]
[355881225,1741675843694,-500.0,0.00041095,120]
[355881226,1741675843703,-619.7,0.00041095,120]
[355881228,1741675843713,-577.335142,0.00041095,14]
[355881230,1741675843722,-619.7,0.00041095,120]
[355881231,1741675843732,-619.7,0.00041095,120]
[355881232,1741675843742,-619.89755065,0.00041095,120]
[355881233,1741675843751,-500.0,0.00041095,120]
[355881234,1741675843760,-500.0,0.00041095,120]
[355881235,1741675843769,-500.0,0.00041095,30]
[355881236,1741675843778,-500.0,0.00041095,120]
[355881238,1741675843789,-500.0,0.00041095,120]
[355881239,1741675843798,-160.134432,0.00041095,14]
[355881240,1741675843807,-500.0,0.00041095,120]
[355881241,1741675843816,-500.0,0.00041095,120]
[355881242,1741675843825,-570.89684793,0.00041095,120]
[355881243,1741675843834,-500.0,0.00041095,120]
[355881244,1741675843844,-500.0,0.00041095,120]
[355881245,1741675843853,-528.46244807,0.00041095,120]
[355881246,1741675843863,-3145.4,0.00041095,120]
[355881247,1741675843872,-500.0,0.00041095,120]
[355881248,1741675843881,-2618.12,0.00041095,120]
[355881249,1741675843890,-500.0,0.00041095,120]
[355881250,1741675843899,-500.0,0.00041095,120]
[355881251,1741675843908,-500.0,0.00041095,120]
[355881252,1741675843918,-528.29323563,0.00041095,120]
[355881253,1741675843927,-500.0,0.00041095,120]
[355881254,1741675843936,-500.0,0.00041095,120]
[355881255,1741675843945,-500.0,0.00041095,120]
[355881256,1741675843955,-500.0,0.00041095,120]
[355881257,1741675843965,-500.0,0.00041095,120]
[355881258,1741675843974,-716.84,0.00041095,120]
[355881259,1741675843983,-906.24,0.00041095,120]
[355881260,1741675843993,-701.65,0.00041095,120]
[355881261,1741675844002,-500.0,0.00041095,120]
[355881262,1741675844011,-863.68,0.00041095,120]
[355881263,1741675844020,-151.0,0.00041095,10]
[355881264,1741675844030,-296.044501,0.00041095,10]
[355881265,1741675844041,-3755.89,0.00041095,120]
[355881266,1741675844050,-151.0,0.00041095,14]
[355881267,1741675844060,-196.72583423,0.00041095,120]
[355881268,1741675844070,-151.0,0.00041095,14]
[355881269,1741675844079,-151.0,0.00041095,14]
[355881270,1741675844089,-201.31628,0.00041095,14]
[355881271,1741675844099,-500.0,0.00041095,120]
[355881272,1741675844108,-500.0,0.00041095,120]
[355881273,1741675844117,-500.0,0.00041095,120]
[355881274,1741675844127,-500.0,0.00041095,120]
[355881275,1741675844137,-500.0,0.00041095,120]
[355881276,1741675844147,-500.0,0.00041095,120]
[355881277,1741675844156,-500.0,0.00041095,120]
[355881278,1741675844166,-586.14,0.00041095,120]
[355881279,1741675844176,-500.0,0.00041095,120]
[355881280,1741675844185,-500.0,0.00041095,120]
[355881281,1741675844195,-500.0,0.00041095,120]
[355881282,1741675844205,-500.0,0.00041095,120]
[355881283,1741675844214,-500.0,0.00041095,120]
[355881284,1741675844223,-500.0,0.00041095,120]
[355881285,1741675844233,-500.0,0.00041095,120]
[355881286,1741675844247,-500.0,0.00041095,120]
[355881287,1741675844257,-500.0,0.00041095,120]
[355881288,1741675844266,-500.0,0.00041095,120]
[355881289,1741675844276,-500.0,0.00041095,120]
[355881290,1741675844287,-500.0,0.00041095,120]
[355881291,1741675844296,-500.0,0.00041095,120]
[355881292,1741675844305,-500.0,0.00041095,120]
[355881293,1741675844314,-500.0,0.00041095,120]
[355881294,1741675844324,-500.0,0.00041095,120]
[355881295,1741675844335,-446.72159878,0.00041095,120]
[355881296,1741675844344,-500.0,0.00041095,120]
[355881297,1741675844353,-402.763237,0.00041095,14]
[355881298,1741675844363,-402.763237,0.00041095,14]
[355881299,1741675844372,-402.763237,0.00041095,14]
[355881300,1741675844382,-859.7,0.00041095,120]
[355881302,1741675844391,-402.763237,0.00041095,14]
[355881304,1741675844400,-518.30739107,0.00041095,120]
[355881306,1741675844410,-500.0,0.00041095,120]
[355881308,1741675844419,-500.0,0.00041095,120]
[355881309,1741675844428,-402.763237,0.00041095,14]
[355881310,1741675844437,-402.763237,0.00041095,14]
[355881311,1741675844447,-500.0,0.00041095,120]
[355881312,1741675844456,-402.763237,0.00041095,14]
[355881313,1741675844465,-402.763237,0.00041095,14]
[355881314,1741675844474,-151.0,0.00041095,14]
[355881315,1741675844484,-500.0,0.00041095,7]
[355881316,1741675844494,-153.345001,0.00041095,14]
[355881317,1741675844502,-567.72334362,0.00041095,120]
[355881318,1741675844511,-500.0,0.00041095,120]
[355881319,1741675844521,-151.0,0.00041095,14]
[355881320,1741675844530,-151.0,0.00041095,14]
[355881321,1741675844540,-151.0,0.00041095,14]
[355881322,1741675844549,-151.0,0.00041095,14]
[355881323,1741675844558,-151.0,0.00041095,14]
[355881324,1741675844567,-156.228672,0.00041095,14]
[355881325,1741675844576,-151.0,0.00041095,14]
[355881326,1741675844585,-500.0,0.00041095,120]
[355881327,1741675844595,-152.937808,0.00041095,14]
[355881328,1741675844707,-1202.81,0.00041095,120]
[355881329,1741675844718,-511.80742577,0.00041095,120]
[355881330,1741675844727,-500.0,0.00041095,120]
[355881331,1741675844737,-500.0,0.00041095,120]
[355881332,1741675844747,-727.7,0.00041095,120]
[355881333,1741675844756,-500.0,0.00041095,120]
[355881334,1741675844766,-500.0,0.00041095,120]
[355881335,1741675844776,-500.0,0.00041095,120]
[355881336,1741675844786,-734.1,0.00041095,3]
[355881337,1741675844796,-500.0,0.00041095,120]
[355881338,1741675844806,-500.0,0.00041095,120]
[355881339,1741675844815,-500.0,0.00041095,120]
[355881340,1741675844825,-1261.26,0.00041095,120]
[355881341,1741675844834,-588.46,0.00041095,120]
[355881342,1741675844843,-151.0,0.00041095,14]
[355881343,1741675844853,-154.15145,0.00041095,14]
[355881344,1741675844862,-500.0,0.00041095,120]
[355881345,1741675844872,-500.0,0.00041095,120]
[355881346,1741675844881,-500.0,0.00041095,120]
[355881347,1741675844891,-500.0,0.00041095,2]
[355881348,1741675844900,-734.62,0.00041095,120]
[355881349,1741675844910,-755.23,0.00041095,120]
[355881350,1741675844919,-19546.5,0.00041095,120]
[355881351,1741675844929,-954.01,0.00041095,120]
[355881352,1741675844938,-661.47,0.00041095,120]
[355881353,1741675844948,-500.0,0.00041095,21]
[355881354,1741675844957,-6187.55,0.00041095,120]
[355881355,1741675844966,-1000.0,0.00041095,120]
[355881356,1741675844975,-509.2297945,0.00041095,120]
[355881357,1741675844985,-500.0,0.00041095,120]
[355881358,1741675844994,-500.0,0.00041095,120]
[355881359,1741675845003,-885.93,0.00041095,120]
[355881360,1741675845013,-1457.07,0.00041095,120]
[355881361,1741675845022,-500.0,0.00041095,120]
[355881362,1741675845031,-151.0,0.00041095,14]
[355881363,1741675845040,-151.0,0.00041095,14]
[355881364,1741675845050,-151.0,0.00041095,14]
[355881365,1741675845059,-151.0,0.00041095,14]
[355881366,1741675845068,-500.0,0.00041095,120]
[355881367,1741675845077,-64809.88121078,0.00041095,7]
[355881377,1741676730563,5000.0,0.00027,60]
[355881378,1741676738564,5000.0,0.00027,60]
[355881379,1741676747133,-270.109666,0.0003589,2]
[355881380,1741676747155,-490.62394786,0.00038596,2]
[355881381,1741676747177,-350.28894312,0.00038772,113]
[355881382,1741676747200,-400.0,0.00038799,5]
[355881383,1741676747220,-1685.58928619,0.000388,2]
[355881384,1741676747907,5000.0,0.00027,60]
[355881385,1741676751073,-292.78028331,0.000388,2]
[355881386,1741676755850,5000.0,0.00027,60]
[355881387,1741676764258,3964.32592811,0.00026,3]
[355881388,1741676772826,5000.0,0.00026,3]
[355881389,1741676788455,5000.0,0.00026,3]
[355881391,1741676805053,5000.0,0.00026,3]
[355881392,1741676820484,5000.0,0.00026,3]
[355881393,1741676836185,5000.0,0.00026,3]
[355881394,1741676841121,-169.53294816,0.0003,30]
[355881395,1741676842534,1991.0,0.00025205,120]
[355881396,1741676849094,-177.14470337,0.0003,30]
[355881397,1741676851099,-153.32234847,0.0003,30]
[355881398,1741676851122,-156.8727316,0.0003,30]
[355881399,1741676851145,-218.362005,0.00037407,2]
[355881400,1741676851167,-203.46883938,0.00037923,7]
[355881401,1741676851191,-196.0,0.00038023,2]
[355881402,1741676851214,-807.5382154,0.00038023,2]
[355881403,1741676852327,2834.00790229,0.00026,3]
[355881409,1741676942841,-2000.0,0.0003,28]
[355881410,1741676942894,-400.0,0.00031,28]
[355881411,1741676944380,4303.0,0.000253,15]
[355881412,1741676944748,735.49551253,0.000253,15]
[355881413,1741676944773,5911.50448747,0.000253,15]
[355881414,1741676944839,2717.0,0.000253,15]
[355881415,1741676945152,4187.0,0.000253,15]
[355881416,1741676945639,1076.0,0.000253,15]
[355881417,1741676946472,2151.0,0.000253,15]
[355881418,1741676946871,269.0,0.000253,15]
[355881419,1741676947136,-1600.0,0.00031,28]
[355881420,1741676947160,-2000.0,0.00031,28]
[355881421,1741676947182,-2000.0,0.000311,28]
[355881422,1741676947205,-1543.88171888,0.000319,6]
[355881423,1741676947268,538.0,0.000253,15]
[355881424,1741676947676,150.0,0.000253,15]
[355881425,1741676954370,2000.0,0.0003,28]
[355881426,1741676955047,203.46883938,0.000309,6]
[355881427,1741676956564,982.29552904,0.000289,2]
[355881428,1741676956946,329.06266348,0.000339,2]
[355881429,1741676956968,653.23286556,0.000339,2]
[355881430,1741676962155,-24092.4617846,0.00038023,2]
[355881431,1741676963229,2000.0,0.00031,28]
[355881433,1741677015403,2000.0,0.00038,28]
[355881439,1741677035008,200.0,0.00027,120]
[355881445,1741677038142,-1788.80735049,0.000388,2]
[355881446,1741677038152,-1238.7526798,0.00038872,2]
[355881447,1741677038162,-245.61694275,0.00039763,2]
[355881448,1741677038172,-333.20008814,0.00039899,2]
[355881449,1741677038182,-216.33,0.00039999,2]
[355881450,1741677038191,-1000.0,0.00039999,2]
[355881451,1741677038201,-1142.79615217,0.00039999,2]
[355881452,1741677038211,-200.0,0.00039999,2]
[355881453,1741677038221,-200.0,0.00039999,2]
[355881454,1741677038230,-200.0,0.00039999,2]
[355881455,1741677038240,-200.0,0.00039999,2]
[355881456,1741677038250,-200.0,0.00039999,2]
[355881457,1741677038259,-200.0,0.00039999,2]
[355881458,1741677038269,-200.0,0.00039999,2]
[355881459,1741677038278,-200.0,0.00039999,2]
[355881460,1741677038288,-200.0,0.00039999,2]
[355881461,1741677038297,-200.0,0.00039999,2]
[355881462,1741677038308,-301.91744696,0.00039999,2]
[355881463,1741677038318,-1010.0,0.0004,20]
[355881464,1741677038328,-6309.62090829,0.0004,120]
[355881465,1741677038338,-1812.74358742,0.0004,15]
[355881466,1741677038347,-706.34393896,0.0004005,2]
[355881467,1741677038357,-171.15914663,0.00040327,2]
[355881468,1741677038367,-364.9265714,0.00040328,30]
[355881469,1741677038376,-356.9896343,0.00040328,30]
[355881470,1741677038386,-356.9896343,0.00040328,30]
[355881471,1741677038396,-706.34393896,0.0004049,2]
[355881472,1741677038405,-162.34274134,0.00040524,2]
[355881473,1741677038414,-368.95509228,0.0004054,2]
[355881474,1741677038424,-500.0,0.0004054,2]
[355881475,1741677038433,-500.0,0.0004054,2]
[355881476,1741677038443,-500.0,0.0004054,2]
[355881477,1741677038453,-500.0,0.0004054,2]
[355881478,1741677038462,-500.0,0.0004054,2]
[355881479,1741677038472,-500.0,0.0004054,2]
[355881480,1741677038482,-500.0,0.0004054,2]
[355881481,1741677038491,-500.0,0.0004054,2]
[355881482,1741677038500,-500.0,0.0004054,2]
[355881483,1741677038510,-500.0,0.0004054,2]
[355881484,1741677038519,-500.0,0.0004054,2]
[355881485,1741677038528,-500.0,0.0004054,2]
[355881486,1741677038538,-500.0,0.0004054,2]
[355881487,1741677038547,-500.0,0.0004054,2]
[355881488,1741677038557,-500.0,0.0004054,2]
[355881489,1741677038567,-500.0,0.0004054,2]
[355881490,1741677038577,-500.0,0.0004054,2]
[355881491,1741677038587,-500.0,0.0004054,2]
[355881492,1741677038601,-500.0,0.0004054,2]
[355881493,1741677038611,-500.0,0.0004054,2]
[355881494,1741677038621,-500.0,0.0004054,2]
[355881495,1741677038631,-500.0,0.0004054,2]
[355881496,1741677038641,-500.0,0.0004054,2]
[355881497,1741677038650,-500.0,0.0004054,2]
[355881498,1741677038660,-500.0,0.0004054,2]
[355881499,1741677038670,-555.88759827,0.0004054,2]
[355881500,1741677038679,-500.0,0.0004054,2]
[355881501,1741677038688,-500.0,0.0004054,2]
[355881502,1741677038698,-500.0,0.0004054,2]
[355881503,1741677038707,-500.0,0.0004054,2]
[355881504,1741677038716,-500.0,0.0004054,2]
[355881505,1741677038725,-500.0,0.0004054,2]
[355881506,1741677038734,-500.0,0.0004054,2]
[355881507,1741677038743,-500.0,0.0004054,2]
[355881508,1741677038753,-5069.9714667,0.00040541,4]
[355881509,1741677038762,-202.36931185,0.00040624,2]
[355881510,1741677038771,-162.34274134,0.00040755,2]
[355881511,1741677038780,-706.34393896,0.00040756,2]
[355881512,1741677038790,-333.20008814,0.00040756,28]
[355881513,1741677038799,-706.34393897,0.0004087,2]
[355881514,1741677038810,-344.69615367,0.00040982,2]
[355881515,1741677038820,-196.47,0.00040985,3]
[355881516,1741677038829,-162.34274134,0.00040985,2]
[355881517,1741677038839,-344.69615364,0.00040985,2]
[355881518,1741677038849,-344.69615364,0.00040989,2]
[355881519,1741677038859,-392.95,0.0004099,3]
[355881520,1741677038868,-589.45,0.0004099,3]
[355881521,1741677038878,-344.69615364,0.00040992,2]
[355881522,1741677038887,-344.69615364,0.00040995,2]
[355881523,1741677038896,-6072.08913615,0.00040995,120]
[355881524,1741677038906,-8404.398458,0.00041,120]
[355881525,1741677038916,-1000.0,0.00041,6]
[355881526,1741677038925,-1000.0,0.00041,120]
[355881527,1741677038935,-394.0,0.00041,14]
[355881528,1741677038945,-1000.0,0.00041044,2]
[355881529,1741677038955,-785.89,0.00041053,3]
[355881530,1741677038964,-20453.5039073,0.00041063,3]
[355881531,1741677038973,-416.66666667,0.0004107,3]
[355881532,1741677038982,-160.0,0.0004107,3]
[355881533,1741677039137,-503.77453543,0.00041073,5]
[355881534,1741677039148,-301.07802956,0.00041073,5]
[355881535,1741677039158,-608.62514039,0.00041073,5]
[355881536,1741677039167,-500.0,0.00041073,5]
[355881537,1741677039178,-502.21569284,0.00041073,5]
[355881538,1741677039188,-500.0,0.00041073,5]
[355881539,1741677039198,-500.0,0.00041073,5]
[355881540,1741677039207,-153.02634567,0.00041073,5]
[355881541,1741677039216,-506.38430744,0.00041073,5]
[355881542,1741677039226,-500.0,0.00041073,5]
[355881543,1741677039235,-206.13843323,0.00041073,5]
[355881544,1741677039245,-500.0,0.00041073,5]
[355881545,1741677039255,-502.8663198,0.00041073,5]
[355881546,1741677039264,-500.0,0.00041073,5]
[355881547,1741677039275,-160.23977453,0.00041073,5]
[355881548,1741677039284,-160.41641839,0.00041073,5]
[355881549,1741677039294,-313.90537551,0.00041073,5]
[355881550,1741677039304,-299.14542031,0.00041073,5]
[355881551,1741677039314,-160.40019752,0.00041073,5]
[355881552,1741677039324,-500.0,0.00041073,5]
[355881553,1741677039334,-160.41464031,0.00041073,5]
[355881554,1741677039344,-500.0,0.00041073,5]
[355881555,1741677039354,-160.39544876,0.00041073,5]
[355881556,1741677039363,-500.0,0.00041073,5]
[355881557,1741677039373,-500.0,0.00041073,5]
[355881558,1741677039382,-501.46941657,0.00041073,5]
[355881559,1741677039392,-500.0,0.00041073,5]
[355881560,1741677039402,-160.40333613,0.00041073,5]
[355881561,1741677039412,-159.39769429,0.00041073,5]
[355881562,1741677039421,-500.0,0.00041073,5]
[355881563,1741677039430,-480.63167219,0.00041073,5]
[355881564,1741677039440,-500.0,0.00041073,5]
[355881565,1741677039449,-500.0,0.00041073,5]
[355881566,1741677039460,-501.21389799,0.00041073,5]
[355881567,1741677039470,-502.54789066,0.00041073,5]
[355881568,1741677039479,-500.0,0.00041073,5]
[355881569,1741677039489,-252.28888901,0.00041073,5]
[355881570,1741677039498,-418.25750934,0.00041073,5]
[355881571,1741677039508,-622.48050158,0.00041073,5]
[355881572,1741677039518,-502.8339842,0.00041073,5]
[355881573,1741677039527,-160.39503563,0.00041073,5]
[355881574,1741677039537,-160.40333842,0.00041073,5]
[355881575,1741677039546,-151.57515892,0.00041073,5]
[355881576,1741677039556,-500.0,0.00041073,5]
[355881577,1741677039565,-404.48852422,0.00041073,5]
[355881578,1741677039575,-500.0,0.00041073,2]
[355881579,1741677039585,-500.0,0.00041073,5]
[355881580,1741677039596,-500.0,0.00041073,5]
[355881581,1741677039606,-210.8573301,0.00041073,5]
[355881582,1741677039616,-176.8122789,0.00041073,5]
[355881583,1741677039625,-500.0,0.00041073,5]
[355881584,1741677039636,-500.0,0.00041073,5]
[355881585,1741677039645,-500.0,0.00041073,5]
[355881586,1741677039655,-500.0,0.00041073,5]
[355881587,1741677039664,-500.0,0.00041073,5]
[355881588,1741677039675,-218.98207517,0.00041073,5]
[355881589,1741677039684,-500.0,0.00041073,5]
[355881590,1741677039694,-500.0,0.00041073,5]
[355881591,1741677039703,-267.29080513,0.00041073,5]
[355881592,1741677039713,-500.0,0.00041073,5]
[355881593,1741677039722,-500.0,0.00041073,5]
[355881594,1741677039732,-500.0,0.00041073,5]
[355881595,1741677039742,-434.85701813,0.00041079,31]
[355881596,1741677039751,-614.1577763,0.00041079,31]
[355881597,1741677039761,-1000.0,0.0004108,120]
[355881598,1741677039771,-1874.32745948,0.0004108,120]
[355881599,1741677039780,-162956.63443931,0.0004108,120]
[355881600,1741677039790,-2098.2886499,0.00041082,2]
[355881601,1741677039799,-160.0,0.00041085,3]
[355881602,1741677039810,-224988.54298,0.00041085,3]
[355881603,1741677039819,-418.81887116,0.00041085,3]
[355881604,1741677039829,-503.02538616,0.00041094,7]
[355881605,1741677039838,-151.0,0.00041095,14]
[355881606,1741677039847,-151.0,0.00041095,14]
[355881607,1741677039857,-151.0,0.00041095,14]
[355881608,1741677039866,-151.0,0.00041095,14]
[355881610,1741677039876,-157.883683,0.00041095,14]
[355881611,1741677039886,-151.0,0.00041095,14]
[355881612,1741677039896,-151.0,0.00041095,14]
[355881613,1741677039906,-151.0,0.00041095,14]
[355881614,1741677039915,-151.0,0.00041095,14]
[355881615,1741677039924,-151.0,0.00041095,14]
[355881616,1741677039934,-151.0,0.00041095,14]
[355881617,1741677039943,-151.0,0.00041095,14]
[355881618,1741677039952,-151.0,0.00041095,14]
[355881620,1741677039961,-151.0,0.00041095,14]
[355881621,1741677039971,-151.0,0.00041095,14]
[355881622,1741677039980,-151.0,0.00041095,14]
[355881623,1741677039990,-151.0,0.00041095,14]
[355881624,1741677040000,-151.0,0.00041095,14]
[355881625,1741677040009,-151.0,0.00041095,14]
[355881626,1741677040020,-151.0,0.00041095,14]
[355881627,1741677040029,-151.0,0.00041095,14]
[355881628,1741677040039,-151.0,0.00041095,14]
[355881629,1741677040048,-151.0,0.00041095,14]
[355881630,1741677040059,-151.0,0.00041095,14]
[355881631,1741677040069,-151.0,0.00041095,14]
[355881632,1741677040079,-151.0,0.00041095,14]
[355881633,1741677040088,-296.477252,0.00041095,14]
[355881634,1741677040098,-151.0,0.00041095,14]
[355881635,1741677040107,-152.344276,0.00041095,14]
[355881636,1741677040117,-151.0,0.00041095,14]
[355881637,1741677040127,-151.0,0.00041095,14]
[355881638,1741677040137,-151.0,0.00041095,14]
[355881639,1741677040146,-151.0,0.00041095,14]
[355881640,1741677040156,-151.0,0.00041095,14]
[355881641,1741677040166,-151.0,0.00041095,14]
[355881642,1741677040176,-151.0,0.00041095,14]
[355881643,1741677040186,-151.0,0.00041095,14]
[355881644,1741677040196,-151.0,0.00041095,14]
[355881645,1741677040206,-500.0,0.00041095,120]
[355881646,1741677040216,-250.0,0.00041095,120]
[355881647,1741677040226,-300.0,0.00041095,60]
[355881648,1741677040236,-500.0,0.00041095,14]
[355881649,1741677040246,-500.0,0.00041095,14]
[355881650,1741677040255,-500.0,0.00041095,14]
[355881651,1741677040264,-500.0,0.00041095,14]
[355881652,1741677040274,-500.0,0.00041095,14]
[355881653,1741677040284,-500.0,0.00041095,14]
[355881654,1741677040294,-500.0,0.00041095,14]
[355881655,1741677040304,-500.0,0.00041095,14]
[355881656,1741677040313,-500.0,0.00041095,14]
[355881657,1741677040323,-500.0,0.00041095,14]
[355881658,1741677040333,-500.0,0.00041095,14]
[355881659,1741677040343,-500.0,0.00041095,14]
[355881660,1741677040353,-500.0,0.00041095,14]
[355881661,1741677040362,-500.0,0.00041095,14]
[355881662,1741677040372,-189.11666829,0.00041095,14]
[355881663,1741677040381,-151.0,0.00041095,14]
[355881664,1741677040390,-151.0,0.00041095,14]
[355881665,1741677040400,-177.105014,0.00041095,14]
[355881666,1741677040410,-500.0,0.00041095,120]
[355881667,1741677040420,-500.0,0.00041095,120]
[355881668,1741677040430,-500.0,0.00041095,120]
[355881669,1741677040439,-500.0,0.00041095,120]
[355881670,1741677040450,-500.0,0.00041095,120]
[355881671,1741677040460,-545.54874253,0.00041095,120]
[355881672,1741677040471,-500.0,0.00041095,120]
[355881673,1741677040480,-500.0,0.00041095,120]